Cogmind - Beta 11.1 @@@ ROGUE MODE // 2022.09.08 @ 22:55:48 Player: deadnoob Result: Destroyed by 8R-AWN with 8R-AWN's Boregun Performance ------------- Evolutions (1) 500 Regions Visited (5) 1000 Robots Destroyed (52) 260 Value Destroyed (1065) 1065 Prototype IDs (26) 520 Alien Tech Used (0) 0 Bonus (-3) -3 TOTAL SCORE: 3342 Bonus ------- High Alert Combat Kills 27 Follower Combat Kills 254 Aligned with FarCom 300 Friendly Fire -584 Cogmind --------- Core Integrity 0/400 Matter 300/300 Energy 100/100 System Corruption 1% Temperature Cool (49) Movement Core (200) Ox3 Location -9/Exiles Parts ------- > --- POWER (1) -------- (None) > --- PROPULSION (2) --- (None) > --- UTILITY (4) ------ Salvage Targeting Computer Targeting Computer > --- WEAPON (2) ------- AWS/Gauss > --- INVENTORY (5) ---- Improved Heat Sink Huge Storage Unit Shield Generator Improved EM Shotgun Mining Claw Peak State ------------ > --- POWER ------------ Light Ion Engine > --- PROPULSION ------- Aluminum Leg Improved Aluminum Leg > --- UTILITY ---------- High-capacity Storage Unit Salvage Targeting Computer Targeting Computer Light Armor Plating > --- WEAPON ----------- AWS/Gauss > --- INVENTORY -------- Light Treads Aluminum Leg Improved Heat Sink Huge Storage Unit Light Armor Plating Medium Armor Plating Medium Armor Plating Shield Generator Improved EM Shotgun Improved EM Shotgun Advanced Beam Cannon Assault Rifle Light Assault Rifle Light Assault Rifle Light Assault Rifle Light Assault Rifle Mini Grenade Launcher Mining Claw [Rating: 28] Favorites ----------- Power Light Nuclear Core Engine Light Ion Engine Power Core Light Nuclear Core Propulsion Light Treads Treads Light Treads Leg Aluminum Leg Wheel Compact Wheel Utility High-capacity Storage Unit Device Structural Scanner Storage High-capacity Storage Unit Processor Targeting Computer Protection Light Armor Plating Weapon Improved EM Shotgun Energy Gun Improved EM Shotgun Energy Cannon Advanced Beam Cannon Ballistic Gun Light Assault Rifle Launcher Mini Grenade Launcher Slashing Weapon Mining Claw Build | -11 -10 -10 -9 -9 -9 ------- Run | Scr Mat Min Mat Min Exi Slots Evolved 2 | . . . 2 . . Power . | . . . . . . Propulsion . | . . . . . . Utility 2 | . . . 2 . . Weapon . | . . . . . . Parts Attached 56 | 6 7 6 12 7 18 Power 4 | 1 1 1 . 1 . Engine 2 | 1 . . . 1 . Core 2 | . 1 1 . . . Reactor . | . . . . . . Propulsion 10 | 2 2 2 . 2 2 Treads 3 | . . 2 . . 1 Leg 5 | 2 . . . 2 1 Wheel 2 | . 2 . . . . Hover . | . . . . . . Flight . | . . . . . . Utility 15 | 1 4 . 5 1 4 Device 2 | . 1 . 1 . . Storage 5 | 1 3 . . . 1 Processor 3 | . . . 3 . . Hackware . | . . . . . . Protection 5 | . . . 1 1 3 Artifact . | . . . . . . Weapon 27 | 2 . 3 7 3 12 Energy Gun 10 | 1 . . 6 2 1 Energy Cannon 2 | . . . 1 . 1 Ballistic Gun 12 | 1 . 2 . . 9 Ballistic Cannon . | . . . . . . Launcher 2 | . . . . 1 1 Special Weapon . | . . . . . . Impact Weapon . | . . . . . . Slashing Weapon 1 | . . 1 . . . Piercing Weapon . | . . . . . . Special Melee Weapon . | . . . . . . Unidentified Prototypes 3 | . . . 3 . . Parts Lost 22 | . . 2 1 5 14 Power 2 | . . . . 1 1 Propulsion 8 | . . 2 . 2 4 Utility 5 | . . . . 1 4 Weapon 7 | . . . 1 1 5 Highest Loss Streak 8 | . . 1 1 3 8 To Critical Strikes 11 | . . 1 . . 10 Average Slot Usage (%) 96 | . 99 89 99 99 95 Engine 3 | . 3 . . 3 9 Core 7 | . 10 14 11 7 . Treads 9 | . . 8 22 13 . Leg 8 | . 11 . . 8 19 Wheel 3 | . 16 10 . . . Device 6 | . 13 14 10 . . Storage 11 | . 14 14 11 11 10 Processor 13 | . . . 14 22 22 Protection 7 | . . . 8 10 10 Energy Gun 18 | . 14 14 21 21 17 Ballistic Gun 3 | . 14 7 . . 3 Slashing Weapon 1 | . . 6 . . . Naked Turns . | . . . . . . Heaviest Build 89 | 11 89 50 59 58 52 Greatest Support 40 | 20 26 40 40 40 23 Greatest Overweight (x) 4 | . 3 3 1 4 4 Average Overweight (x) 1 | . 1 2 1 1 2 Largest Inventory Capacity 25 | 8 25 20 20 20 20 Average Capacity 19 | 7 18 20 20 20 19 Most Carried 23 | 6 23 20 20 20 20 Average Carried 17 | 3 14 19 19 18 15 Final Capacity 20 | 8 20 20 20 20 5 Final Carried 20 | 6 20 20 19 16 5 Class Distribution -------------------- 100% | Mutant Dominant Class ---------------- Mutant | -10/Materials Mutant | -10/Mines Mutant | -9/Materials Mutant | -9/Mines Mutant | -9/Exiles Resources | -11 -10 -10 -9 -9 -9 ----------- Run | Scr Mat Min Mat Min Exi Matter Collected 941 | 260 109 103 85 103 281 Remotely . | . . . . . . Salvage Created 1861 | . 251 99 1062 432 17 Parts 112 | . 10 8 62 32 . Haulers Intercepted 7 | . 2 . 5 . . Recyclers Shooed 2 | . . . 2 . . Parts Field Recycled . | . . . . . . Retrieved Matter . | . . . . . . Parts Self-Destructed . | . . . . . . Prevented . | . . . . . . Kills | -11 -10 -10 -9 -9 -9 ------- Run | Scr Mat Min Mat Min Exi Combat Hostiles Destroyed 42 | . 5 4 13 16 4 Guns 34 | . 5 4 10 14 1 AOE 7 | . . . 2 2 3 Classes Destroyed 10 | . 3 . 6 . 1 Worker 4 | . . . 4 . . Tunneler 1 | . . . 1 . . Hauler 7 | . 2 . 5 . . Recycler 1 | . . . 1 . . Watcher 1 | . . . 1 . . Swarmer 16 | . 3 2 1 10 . Grunt 19 | . 2 2 9 6 . Brawler 2 | . . . 2 . . Sentry 1 | . . . 1 . . Assembled 7 | . . . . . 7 Best Kill Streak 13 | . 2 2 13 4 4 Combat Bots Only 4 | . 2 2 3 4 4 Max Kills in Single Turn 3 | . 1 1 2 2 3 Gunslinging . | . . . . . . Exploded 3 | . . . 1 2 3 Melee . | . . . . . . Uniques/NPCs Destroyed . | . . . . . . Combat | -11 -10 -10 -9 -9 -9 -------- Run | Scr Mat Min Mat Min Exi Damage Taken 2863 | . 187 114 473 347 1742 Core 439 | . 23 6 59 41 310 Absorbed by Shields . | . . . . . . Core Remaining (%) 94 | 100 . 88 . . . Volleys Fired 152 | . 25 5 41 20 61 Largest 2 | . 2 2 2 2 2 Hottest 113 | . 70 70 101 90 113 Shots Fired 294 | . 50 10 80 38 116 Gun 277 | . 50 10 80 36 101 Cannon 13 | . . . . . 13 Launcher 4 | . . . . 2 2 Special . | . . . . . . Kinetic 130 | . 25 5 . . 100 Thermal 63 | . 25 5 20 . 13 Explosive 4 | . . . . 2 2 Electromagnetic 97 | . . . 60 36 1 Robot Hit Streak 15 | . 8 4 11 7 15 Robot Miss Streak 7 | . 7 1 3 3 2 Penetration Max . | . . . . . . Secondary Targets 3 | . . . 1 2 . Max Gunslinging Chain 1 | . . . 1 1 . Shots Hit Robots 229 | . 28 6 65 31 99 Core Hits 111 | . 13 5 41 25 27 Critical Kills . | . . . . . . Critical Parts Destroyed . | . . . . . . Critical Strikes 3 | . 1 . 2 . . Burn 3 | . 1 . 2 . . Melee Attacks 6 | . . 6 . . . Impact . | . . . . . . Slashing 6 | . . 6 . . . Piercing . | . . . . . . Sneak Attacks . | . . . . . . Combat Hostiles . | . . . . . . Follow-up Attacks . | . . . . . . Damage Inflicted 3880 | . 286 65 1402 754 1373 Guns 2667 | . 286 65 1130 446 740 Cannons 228 | . . . . . 228 Explosions 973 | . . . 260 308 405 Melee . | . . . . . . Ramming 12 | . . . 12 . . Kinetic 878 | . 110 28 . . 740 Thermal 970 | . 176 37 464 65 228 Explosive 648 | . . . . 243 405 Electromagnetic 1372 | . . . 926 446 . Impact . | . . . . . . Slashing . | . . . . . . Piercing . | . . . . . . Highest Corruption 1 | . . . 1 1 1 Average Corruption 1 | . . . 1 1 1 Corruption Purged . | . . . . . . Corruption Blocked . | . . . . . . Effects 16 | . . . 3 4 9 Message Errors 4 | . . . 3 1 . Matter Fused 2 | . . . . 1 1 Heat Flow Errors 2 | . . . . 1 1 Energy Discharges 4 | . . . . . 4 Data Loss (minor) 2 | . . . . . 2 Data Loss (major) 1 | . . . . 1 . Weapon Failures 1 | . . . . . 1 Overload Shots . | . . . . . . Overflow Damage 60 | . . . 8 40 12 Projectiles . | . . . . . . Explosions 60 | . . . 8 40 12 Melee . | . . . . . . Knockbacks . | . . . . . . Impact . | . . . . . . Kinetic . | . . . . . . Secondary . | . . . . . . Self-Inflicted Damage 24 | . . . . 24 . Shots 2 | . . . . 2 . Rammed 2 | . . . 2 . . Targets Rammed 2 | . . . 2 . . Kicked . | . . . . . . Crushed . | . . . . . . Highest Temperature 241 | . 146 66 194 241 216 Average Temperature 76 | . 50 30 74 88 120 Received Heat Transfer 330 | . 48 36 180 66 . Siege Activations . | . . . . . . Robots Corrupted 2 | . . . 2 . . Combat Hostiles 1 | . . . 1 . . Parts Fried 6 | . . . 4 2 . Impact Corruptions . | . . . . . . Robots Melted 1 | . . . 1 . . Combat Hostiles . | . . . . . . Parts Melted 3 | . 1 . 1 1 . Heat Transferred 1971 | . 592 111 1069 100 99 Parts Sabotaged . | . . . . . . Parts Stolen . | . . . . . . Parts Stripped . | . . . . . . Power Chain Reactions 6 | . . . 4 2 . Missiles Intercepted . | . . . . . . Alert | -11 -10 -10 -9 -9 -9 ------- Run | Scr Mat Min Mat Min Exi Peak Influence 486 | . 239 116 486 389 . Initial 156 | . . 21 46 156 . Average 207 | . 97 46 308 326 . Maximum Alert Level 2 | . 1 . 2 1 . Low Security (%) 45 | 100 80 100 12 5 . Level 1 49 | . 19 . 73 94 . Level 2 4 | . . . 13 . . Level 3 . | . . . . . . Level 4 . | . . . . . . Level 5 . | . . . . . . High Security . | . . . . . . Max Security . | . . . . . . Squads Dispatched 2 | . . . 2 . . Investigation . | . . . . . . Extermination . | . . . . . . Reinforcement 2 | . . . 2 . . Assault . | . . . . . . Garrison . | . . . . . . Intercept . | . . . . . . Searches Triggered . | . . . . . . Construction Impeded . | . . . . . . Haulers Reinforced . | . . . . . . Active Scanning Responses . | . . . . . . Cargo Convoy Interrupts . | . . . . . . Stealth | -11 -10 -10 -9 -9 -9 --------- Run | Scr Mat Min Mat Min Exi Distress Signals 3 | . 1 1 1 . . Communications Jammed . | . . . . . . Distress Signals . | . . . . . . Times Spotted 74 | . 14 9 29 17 5 Peak Tracking Total 4 | . 4 3 4 4 4 Tactical Retreats 4 | . 4 . . . . Traps | -11 -10 -10 -9 -9 -9 ------- Run | Scr Mat Min Mat Min Exi Traps Triggered 1 | . . . 1 . . Indirectly . | . . . . . . Trap Hack Attempts . | . . . . . . Triggered . | . . . . . . Disarmed . | . . . . . . Reprogrammed . | . . . . . . Reused . | . . . . . . Traps Extracted . | . . . . . . Installed . | . . . . . . Triggered . | . . . . . . Machines | -11 -10 -10 -9 -9 -9 ---------- Run | Scr Mat Min Mat Min Exi Machines Disabled 6 | . . . 3 . 3 Max in Single Turn 1 | . . . 1 . 1 Machines Sabotaged . | . . . . . . Garrisons Compromised . | . . . . . . Overloaded Fab Kills . | . . . . . . Hacking | -11 -10 -10 -9 -9 -9 --------- Run | Scr Mat Min Mat Min Exi Machines Accessed 4 | . 2 . 1 . 1 Terminals 2 | . 2 . . . . Fabricators . | . . . . . . Repair Stations . | . . . . . . Recycling Units 1 | . . . 1 . . Scanalyzers . | . . . . . . Garrison Access . | . . . . . . Total Hacks 8 | . 6 . 1 . 1 Successful 5 | . 3 . 1 . 1 Failed 3 | . 3 . . . . Catastrophic . | . . . . . . Database Lockouts . | . . . . . . Manual 7 | . 5 . 1 . 1 Terminals 6 | . 6 . . . . Fabricators . | . . . . . . Repair Stations . | . . . . . . Recycling Units 1 | . . . 1 . . Scanalyzers . | . . . . . . Garrison Access . | . . . . . . Terminal Hacks 3 | . 2 . . . 1 Robot Analysis 1 | . 1 . . . . Branch Access Points 1 | . 1 . . . . EX-Prototype ID Bank 1 | . . . . . 1 Fabricator Hacks . | . . . . . . Repair Station Hacks . | . . . . . . Recycling Unit Hacks . | . . . . . . Scanalyzer . | . . . . . . Garrison Access Hacks . | . . . . . . Unauthorized Hacks 2 | . 1 . 1 . . Terminals 1 | . 1 . . . . Botnet 1 | . 1 . . . . Fabricators . | . . . . . . Repair Stations . | . . . . . . Recycling Units 1 | . . . 1 . . Reject 1 | . . . 1 . . Scanalyzers . | . . . . . . Garrison Access . | . . . . . . Data Cores Recovered . | . . . . . . Used . | . . . . . . Hacking Detections 2 | . 2 . . . . Full Trace Events . | . . . . . . Feedback Events . | . . . . . . Feedback Blocked . | . . . . . . Robot Schematics Acquired . | . . . . . . Robots Built . | . . . . . . Authchips . | . . . . . . Time . | . . . . . . Total Robot Build Rating . | . . . . . . Part Schematics Acquired . | . . . . . . Parts Built . | . . . . . . Authchips . | . . . . . . Time . | . . . . . . Total Part Build Rating . | . . . . . . Parts Repaired . | . . . . . . Time . | . . . . . . Parts Recycled . | . . . . . . Recycled Matter . | . . . . . . Retrieved Matter . | . . . . . . Retrieved Components . | . . . . . . Parts Scanalyzed . | . . . . . . Part Schematics Acquired . | . . . . . . Parts Damaged . | . . . . . . Bothacking | -11 -10 -10 -9 -9 -9 ------------ Run | Scr Mat Min Mat Min Exi Used RIF Installer . | . . . . . . Robots Hacked . | . . . . . . Non-combat . | . . . . . . Combat . | . . . . . . Robot Hacks Applied . | . . . . . . Relay Couplers Released . | . . . . . . Fabnet Peak Effective % . | . . . . . . Robots Rewired . | . . . . . . Allies Hacked . | . . . . . . Hacks Repelled . | . . . . . . Allies | -11 -10 -10 -9 -9 -9 -------- Run | Scr Mat Min Mat Min Exi Total Allies 3 | . . 3 . . . Largest Group 3 | . . 3 2 . . Highest-Rated Group 40 | . . 40 24 . . Highest-Rated Ally 16 | . . 16 16 . . Total Orders . | . . . . . . Ally Attacks 68 | . . 15 53 . . Total Damage 650 | . . 175 475 . . Kills 18 | . . 5 13 . . Allies Corrupted . | . . . . . . Allies Melted . | . . . . . . Intel | -11 -10 -10 -9 -9 -9 ------- Run | Scr Mat Min Mat Min Exi Robot Analysis Total 1 | . 1 . . . . Derelict Logs Recovered 2 | . . 1 . 1 . Drone Launches . | . . . . . . Drone Recoveries . | . . . . . . Exploration | -11 -10 -10 -9 -9 -9 ------------- Run | Scr Mat Min Mat Min Exi Turns Passed 4356 | 72 506 741 981 754 1302 Spaces Moved 1776 | 49 276 414 335 274 428 Core 22 | 2 . . . . 20 Treads 588 | . . 81 335 172 . Legs 680 | 47 123 . . 102 408 Wheels 486 | . 153 333 . . . Hover . | . . . . . . Flight . | . . . . . . Fastest Speed 50 | 50 105 145 240 240 50 Average Speed 206 | 117 126 163 240 248 256 Slowest Speed 400 | 120 135 240 240 400 260 Overloaded Moves . | . . . . . . Propulsion Burnouts . | . . . . . . Robots Hopped . | . . . . . . Cave-ins Triggered . | . . . . . . Exploration Rate (%) 50 | 4 45 76 46 66 67 Regions Visited 5 Branch Regions 3 Pre-discovered Areas 1 | . . 1 . . . Known Exits Taken 1 | . 1 . . . . Unknown Exits Taken 4 | 1 . 1 1 1 . Scrap Searched 2 | . . . . 2 . Spaces Dug 21 | . . . . 21 . Terrain Destroyed 39 | . . . 3 23 13 Melee . | . . . . . . Projectile . | . . . . . . AOE 39 | . . . 3 23 13 Terrain Rammed . | . . . . . . Walls Destroyed . | . . . . . . Machines Disabled . | . . . . . . Actions | -11 -10 -10 -9 -9 -9 --------- Run | Scr Mat Min Mat Min Exi Total 2191 | 60 388 461 435 310 537 Wait 109 | . 58 21 17 5 8 Move 1771 | 48 275 413 334 273 428 Hop . | . . . . . . Pick Up 49 | 6 17 5 10 3 8 Fast Attach 19 | 6 3 . 7 1 2 Attach 22 | . . 2 3 4 13 Detach 7 | . 1 . 4 . 2 Swap 15 | . 4 4 2 2 3 Drop 39 | . 5 5 15 2 12 Fire 152 | . 25 5 41 20 61 Melee 6 | . . 6 . . . Ram . | . . . . . . Kick . | . . . . . . Crush 2 | . . . 2 . . Escape Stasis . | . . . . . . Rewire . | . . . . . . Trap . | . . . . . . Miscellaneous . | . . . . . . Route ------- -11/Scrapyard -10/Materials (discovered 3 exits: *Mat / *Min x2) -10/Mines (discovered 2 exits: *Mat x2) -9/Materials (discovered 2 exits: [*Mat] / [*Min]) -9/Mines (discovered 2 exits: [*Mat] / *Exi) -9/Exiles History --------- Turn | Location | Event 21 | -11/Scrapyard | Discovered new exit (range 16) 73 | -11/Scrapyard | Entered Materials 244 | -10/Materials | Identified exit to Mines 315 | -10/Materials | Build established: Mutant 321 | -10/Materials | Discovered new exit (range 10) 579 | -10/Materials | Entered Mines 725 | -10/Mines | Discovered new exit (range 9) 743 | -10/Mines | Excavation squad dispatched 743 | -10/Mines | A large section of the Mines collapsed 837 | -10/Mines | Assisted by bots powering up and referring to "LRC-V3" 993 | -10/Mines | Excavation squad dispatched 1243 | -10/Mines | Excavation squad dispatched 1246 | -10/Mines | Discovered new exit (range 8) 1320 | -10/Mines | Entered Materials 1320 | -9/Materials | Accompanied by 2 allies 1320 | -9/Materials | Evolved 2 slots: Utility x2 2157 | -9/Materials | Discovered new exit (range 11) 2252 | -9/Materials | Discovered new exit (range 15) 2301 | -9/Materials | Entered Mines 2302 | -9/Mines | Assembled infested the area 2307 | -9/Mines | Assisted by a Guerilla fighting off Assembled 2679 | -9/Mines | Discovered new exit (range 15) 2850 | -9/Mines | Lost 3 parts (1p1u1w) 2902 | -9/Mines | Learned location of 1 exit from Materials 3045 | -9/Mines | Deemed a non-threat by the Exiles lab entrance 3045 | -9/Mines | Discovered new exit (range 5) 3055 | -9/Mines | Entered Exiles 3206 | -9/Exiles | Met 8R-AWN 3247 | -9/Exiles | Met EX-HEX 3343 | -9/Exiles | Met EX-DEC 3724 | -9/Exiles | Met EX-BIN 3867 | -9/Exiles | Aligned with FarCom system 3869 | -9/Exiles | Given EX-Vault access code 3929 | -9/Exiles | Opened EX-Vault 3947 | -9/Exiles | Found AWS/Gauss 4003 | -9/Exiles | Warned to stay clear of 0b10 Research branches 4134 | -9/Exiles | Attacked by the Exiles 4214 | -9/Exiles | Core integrity fell below 50% 4257 | -9/Exiles | Lost 8 parts (1p3n1u3w) 4315 | -9/Exiles | Core integrity fell below 20% 4357 | -9/Exiles | Destroyed by 8R-AWN with 8R-AWN's Boregun Last Messages --------------- 04335_ Penetrated by HV Slug. 04340_ HV Slug penetrates Machine. 04340_ HV Slug penetrates Earth. 04340_ Penetrated by HV Slug. 04340_ Lgt. Armor Plating destroyed. 04340_ HV Slug penetrates Wall. 04344_ Penetrated by HV Slug. 04344_ HV Slug penetrates Wall. 04344_ HV Slug penetrates Machine. 04348_ Penetrated by HV Slug. 04348_ HV Slug penetrates Machine. 04348_ HV Slug penetrates Wall. 04351_ System corrupted: Heat flow error (+217). 04352_ Penetrated by HV Slug. 04352_ HV Slug penetrates Machine. 04352_ Penetrated by HV Slug. 04352_ HV Slug penetrates Wall. 04357_ Penetrated by HV Slug. 04357_ HV Slug penetrates Wall. 04357_ Penetrated by HV Slug. Map ----- +----------------------------------------------------+ | """#????????????????????????????????????? | | """"????????????????????????????????????? | | """#????????????????????????????????????? | | "X" """"????????????????????????????????????? | | """ #????????????????????????????????????? | | """""""""#????????????????????????????????????? | | ###########????????????????????????????????????? | | #??????????????????????????????????????????????? | | #??????????????????????????????????????????????? | | ##??????? ?????????????????????????????????????? | | ##???####"######??????????????????????????????? | | #####"""" """"##?????????????????????????????? | | " """ """"##????????????????????????????? | | " " #????????????????????????????? | | """#????????????????????????????? | | a"#???????????#####????????????? | | " "##?????????##" #????????????? | | "###???????#" #????????????? | | ##?????##" ##???????????? | | "" ;##??### ###????????## | | ###""" ![#??# ########## | | ??##""" !!]#### #""""## | | ???#"""" !!];## | | ??##"" g ## | | ###"""" #### | | """ @ "#?#"""""#### | | " # " ;#?#######??#### | | #######?????????????#### | | ;#??????????????????????? | | " ###??????????????????????? | | "" """ " #????????????????????????? | | ##""" " " ""#" #????????????????????????? | | ######""" """##" ##????????????????????????? | | #????###""""##### #?????????????????????????? | | #??????######???# # #??????????????????????????? | | ???????????????##### ???????????????????????????? | | ??????????????????##???????????????????????????? | | ???????????????????????????????????????????????? | | "!"??????????????????????????????????????????????? | | ###??????????????????????????????????????????????? | | ?????????????????????????????????????????????????? | | ?????????????????????????????????????????????????? | | ?????????????????????????????????????????????????? | | ?????????????????????????????????????????????????? | | ?????????????????????????????????????????????????? | | ?????????????????????????????????????????????????? | | ?????????????????????????????????????????????????? | | ?????????????????????????????????????????????????? | | ?????????????????????????????????????????????????? | | ?????????????????????????????????????????????????? | +----------------------------------------------------+ Best States ------------- Heat Dissipation 42 Energy Generation 14 Energy Capacity 160 Matter Stores 300 Matter Capacity 400 Sight Range 16 Terrain Scan Density 10 Armor Coverage 225 Evasion (%) 55 Targeting Accuracy 10 Recoil Reduction 2 Salvage Targeting 1 Item Schematics ----------------- None Robot Schematics ------------------ None Fabricated ------------ Nothing Alien Tech Used ----------------- None Achievements -------------- None Challenges ------------ None Game ------ Seed EtherialGodNukerbomber Manual? 0 Play Time 00:26:23 Cumulative 68.0 hours Start 2022.09.08 @ 19:34:59 End 2022.09.08 @ 22:55:48 Sessions 7 Manual Loads 0 Difficulty Rogue Special Mode None Game No. 99 Rogue 99 Adventurer 0 Explorer 0 Win Type - Total 0 Types 0/0/0/0/0/0/0/0/0 Lore% 56 Gallery% 54 Achievement% 44 Wizard Run 0 Options --------- ASCII 0 Keyboard 0 Movement Numpad Keybinds 0 Fullscreen 2 Font 18/SmallcapsGlow Map View 76x50 Tactical HUD 1 Map Filters NONE Filters NONE Steam 1 RUN: ad3d5861-65c3-4acd-ba41-47bcbc257b5b